bitfinex/quotes_SOLUSD_20241121
["timestamp","ask_amount","ask_price","bid_price","bid_amount"]
[1732225754513,12.11290585,253.69,253.6,12.11290585]
[1732225754929,12.11290585,253.68,253.59,12.11290585]
[1732225755210,12.11290585,253.66,253.57,12.11290585]
[1732225755411,12.11290585,253.64,253.57,12.11290585]
[1732225755724,23.776884,253.65,253.57,12.11290585]
[1732225756417,12.11290585,253.68,253.59,12.11290585]
[1732225756791,23.776884,253.67,253.59,12.11290585]
[1732225757542,23.776884,253.67,253.6,1.1829]
[1732225757815,23.776884,253.67,253.59,7.29580585]
[1732225758199,12.11290585,253.66,253.59,7.29580585]
[1732225758401,35.88978985,253.65,253.58,2.9576]
[1732225758611,23.776884,253.65,253.58,2.9576]
[1732225758923,23.776884,253.66,253.59,12.11290585]
[1732225759225,23.776884,253.66,253.53,16.1162]
[1732225759226,23.776884,253.6,253.53,2.9581]
[1732225759522,12.11290585,253.59,253.53,2.9581]
[1732225759902,35.88978985,253.61,253.53,15.07100585]
[1732225760394,12.11290585,253.61,253.53,15.07100585]
[1732225760819,12.11290585,253.61,253.53,16.25420585]
[1732225761314,3.9429,253.62,253.53,16.25420585]
[1732225761507,22.058,253.8,253.63,6.1595]
[1732225761830,12.11290585,253.82,253.73,12.11290585]
[1732225762014,12.11290585,253.8,253.71,12.03346646]
[1732225762227,12.11290585,253.74,253.65,12.11290585]
[1732225762520,12.11290585,253.74,253.66,20.0]
[1732225762735,19.3593474,253.74,253.67,1.1826]
[1732225763511,13.787,253.86,253.67,23.4984474]
[1732225763694,19.3593474,253.72,253.63,19.3593474]
[1732225763895,23.776884,253.71,253.63,19.3593474]
[1732225764210,23.776884,253.67,253.59,19.3593474]
[1732225764799,23.776884,253.67,253.62,2.9571]
[1732225765600,23.73966033,253.67,253.62,2.9571]
[1732225766522,6.6594,253.74,253.65,19.3593474]
[1732225766719,2.5,253.72,253.68,0.02242429]
[1732225766905,5.0,253.72,253.66,19.3593474]
[1732225767099,2.5,253.68,253.66,19.3593474]
[1732225767319,2.5,253.68,253.64,19.3593474]
[1732225767809,2.5,253.7,253.64,19.3593474]
[1732225768122,2.5,253.68,253.65,1.1827]
[1732225768819,2.5,253.68,253.65,4.1395]
[1732225769024,2.5,253.7,253.67,0.16406218]
[1732225769400,5.0,253.71,253.66,19.3593474]
[1732225769613,2.5,253.67,253.62,19.3593474]
[1732225771012,2.5,253.65,253.6,10.0551]
[1732225771198,26.276884,253.64,253.6,4.1403]
[1732225772020,26.276884,253.6,253.55,2.9579]
[1732225772222,23.776884,253.6,253.55,2.9579]
[1732225772426,26.276884,253.6,253.55,2.9579]
[1732225773020,26.276884,253.6,253.55,4.141]
[1732225773443,2.5,253.6,253.55,4.141]
[1732225774147,2.5,253.6,253.55,5.5214]
[1732225774544,24.3593474,253.67,253.58,19.3593474]
[1732225774721,23.776884,253.66,253.58,19.3593474]
[1732225775432,23.776884,253.66,253.59,5.5206]
[1732225776520,23.776884,253.64,253.59,5.5206]
[1732225778757,26.276884,253.66,253.59,5.5206]
[1732225779646,2.5,253.66,253.61,20.0]
[1732225779950,5.0,253.66,253.61,20.0]
[1732225780333,2.5,253.6,253.59,5.5206]
[1732225781143,2.5,253.62,253.59,5.5206]
[1732225781352,2.5,253.62,253.55,13.4093]
[1732225781550,2.5,253.62,253.56,19.3593474]
[1732225782750,5.0,253.6,253.55,13.4093]
[1732225783550,5.0,253.6,253.55,11.8318]
[1732225784128,2.5,253.65,253.57,19.3593474]
[1732225784453,2.5,253.64,253.58,20.0]
[1732225785642,2.5,253.62,253.59,5.5206]
[1732225785836,2.5,253.6,253.59,5.5206]
[1732225786148,2.5,253.6,253.59,3.9433]
[1732225787747,2.5,253.6,253.55,7.8879]
[1732225788353,2.5,253.59,253.55,7.8879]
[1732225789856,2.5,253.6,253.55,7.8879]
[1732225790746,23.776884,253.61,253.55,7.8879]
[1732225790951,2.5,253.6,253.55,19.3593474]
[1732225791937,2.5,253.6,253.56,5.5213]
[1732225792457,2.5,253.64,253.56,5.5213]
[1732225792458,2.5,253.66,253.59,19.3593474]
[1732225792638,2.5,253.66,253.59,12.10424654]
[1732225793660,23.776884,253.65,253.6,5.5204]
[1732225793860,2.5,253.64,253.6,5.5204]
[1732225794162,23.776884,253.65,253.59,12.10424654]
[1732225794361,2.5,253.66,253.6,4.1403]
[1732225794558,5.0,253.66,253.6,4.1403]
[1732225796362,23.776884,253.62,253.6,2.9574]
[1732225796558,2.5,253.61,253.6,2.9574]
[1732225796952,2.5,253.58,253.55,2.9578]
[1732225797252,12.10424654,253.56,253.55,2.9578]
[1732225798151,12.10424654,253.56,253.5,24.1419]
[1732225798462,12.10424654,253.51,253.5,24.1419]
[1732225798670,12.10424654,253.51,253.5,2.9585]
[1732225798856,12.10424654,253.51,253.5,4.1419]
[1732225799044,12.10424654,253.51,253.5,2.9585]
[1732225799244,12.10424654,253.51,253.49,6.16731214]
[1732225799460,14.60424654,253.5,253.49,6.16731214]
[1732225799664,40.88113054,253.5,253.49,6.16731214]
[1732225800044,23.776884,253.49,253.45,2.959]
[1732225800342,12.10424654,253.46,253.45,2.959]
[1732225801167,35.88113054,253.46,253.45,2.959]
[1732225802353,35.88113054,253.46,253.37,20.0]
[1732225802656,12.10424654,253.46,253.38,4.1438]
[1732225804364,12.10424654,253.46,253.39,20.0]
[1732225804549,12.10424654,253.4,253.39,20.0]
[1732225804745,12.10424654,253.4,253.38,4.1438]
[1732225806057,12.10424654,253.4,253.38,2.9599]
[1732225806956,2.5,253.39,253.38,2.9599]
[1732225807263,2.5,253.36,253.34,1.1841]
[1732225807466,12.10424654,253.35,253.34,1.1841]
[1732225807947,14.60424654,253.35,253.34,1.1841]
[1732225809068,12.10424654,253.35,253.34,1.1841]
[1732225809260,2.5,253.4,253.34,4.1445]
[1732225809461,12.10424654,253.37,253.34,24.1445]
[1732225809974,12.10424654,253.39,253.34,24.1445]
[1732225810176,5.0,253.41,253.35,12.10424654]
[1732225810472,5.0,253.41,253.36,24.1442]
[1732225811062,2.5,253.4,253.36,4.1442]
[1732225811257,5.0,253.41,253.36,4.1442]
[1732225812163,2.5,253.4,253.36,4.1442]
[1732225812675,2.5,253.41,253.36,4.1442]
[1732225813281,5.0,253.41,253.36,4.1442]
[1732225813850,2.5,253.41,253.36,4.1442]
[1732225814257,2.5,253.4,253.36,4.1442]
[1732225814456,19.4041412,253.47,253.39,20.0]
[1732225814776,21.9041412,253.49,253.42,19.4041412]
[1732225815082,2.5,253.49,253.43,20.0]
[1732225815652,2.5,253.49,253.44,19.4041412]
[1732225816478,15.2596,253.53,253.44,19.4041412]
[1732225816479,19.4041412,253.53,253.46,4.1426]
[1732225817561,2.5,253.54,253.47,20.0]
[1732225817761,5.0,253.52,253.47,20.0]
[1732225817979,2.5,253.45,253.41,2.9595]
[1732225818189,2.5,253.45,253.42,1.1837]
[1732225818190,21.9041412,253.45,253.42,1.1837]
[1732225818395,2.5,253.43,253.42,1.1837]
[1732225818573,21.9041412,253.45,253.41,2.9595]
[1732225818764,24.4041412,253.47,253.41,2.9595]
[1732225818969,2.5,253.45,253.41,2.9595]
[1732225819365,19.4041412,253.47,253.41,2.9595]
[1732225819566,19.4041412,253.49,253.41,22.9595]
[1732225819788,2.5,253.48,253.41,22.9595]
[1732225819975,19.4041412,253.49,253.41,22.9595]
[1732225820173,2.5,253.5,253.43,20.0]
[1732225820466,2.5,253.42,253.37,20.0]
[1732225822390,2.5,253.4,253.37,20.0]
[1732225822593,2.5,253.42,253.38,4.1438]
[1732225823683,5.0,253.42,253.38,4.1438]
[1732225823894,2.5,253.42,253.38,4.1438]
[1732225824076,5.0,253.42,253.38,4.1438]
[1732225824783,2.5,253.37,253.27,16.1489]
[1732225824974,2.5,253.37,253.28,10.0676]
[1732225824975,19.4041412,253.36,253.28,10.0676]
[1732225825775,43.1810252,253.38,253.28,10.0676]
[1732225826096,43.1810252,253.38,253.3,20.0]
[1732225826394,2.5,253.39,253.32,20.0]
[1732225826571,2.5,253.41,253.34,20.0]
[1732225826776,19.4041412,253.42,253.35,4.1444]
[1732225827681,2.5,253.43,253.35,4.1444]
[1732225828093,19.4041412,253.44,253.36,20.0]
[1732225828902,2.5,253.41,253.37,4.144]
[1732225831484,2.5,253.42,253.37,4.144]
[1732225831673,2.5,253.44,253.38,20.0]
[1732225831879,2.5,253.42,253.38,20.0]
[1732225832489,2.5,253.42,253.37,4.144]
[1732225832905,14.62706114,253.44,253.37,4.144]
[1732225833291,2.5,253.42,253.37,4.144]
[1732225833812,14.62706114,253.44,253.37,4.144]
[1732225834004,23.776884,253.43,253.37,4.144]
[1732225834382,2.5,253.42,253.37,4.144]
[1732225834576,23.776884,253.43,253.37,4.144]
[1732225834806,2.5,253.42,253.37,4.144]
[1732225835605,14.62706114,253.44,253.37,4.144]
[1732225836889,2.5,253.45,253.37,16.27106114]
[1732225837096,2.5,253.42,253.38,20.0]
[1732225837478,2.5,253.44,253.38,20.0]
[1732225837790,2.5,253.44,253.39,4.1437]
[1732225839083,2.5,253.47,253.4,20.0]
[1732225839284,14.62706114,253.5,253.42,20.0]
[1732225839513,18.806,253.52,253.39,26.3655]
[1732225839514,17.12706114,253.52,253.44,20.0]
[1732225839802,2.5,253.48,253.45,4.1427]
[1732225840884,17.12706114,253.52,253.45,4.1427]
[1732225841692,2.5,253.52,253.46,20.0]
[1732225842016,17.12706114,253.54,253.46,20.0]
[1732225842587,5.0,253.58,253.52,20.0]
[1732225842899,2.5,253.56,253.53,4.1414]
[1732225844589,2.5,253.58,253.53,4.1414]
[1732225845096,26.276884,253.59,253.55,4.141]
[1732225845297,2.5,253.59,253.55,4.141]
[1732225845486,2.5,253.6,253.55,4.141]
[1732225845694,2.5,253.6,253.55,16.26806114]
[1732225845898,2.5,253.61,253.56,20.0]
[1732225846695,2.5,253.62,253.56,20.0]
[1732225846894,2.5,253.6,253.56,20.0]
[1732225847096,5.0,253.61,253.57,4.1408]
[1732225847499,2.5,253.61,253.57,4.1408]
[1732225847703,5.0,253.61,253.57,4.1408]
[1732225848120,2.5,253.61,253.57,4.1408]
[1732225848726,2.5,253.65,253.59,20.0]
[1732225849999,2.5,253.65,253.6,4.1403]
[1732225850192,2.30515758,253.68,253.61,20.0]
[1732225850412,2.30515758,253.69,253.63,20.0]
[1732225851921,2.30515758,253.69,253.64,4.1396]
[1732225852109,14.62706114,253.66,253.64,4.1396]
[1732225852505,2.30515758,253.64,253.58,20.0]
[1732225852723,2.5,253.61,253.6,2.9574]
[1732225852892,12.12706114,253.62,253.6,2.9574]
[1732225853095,23.776884,253.62,253.6,2.9574]
[1732225853316,2.5,253.63,253.6,2.9574]
[1732225854124,26.276884,253.61,253.53,20.0]
[1732225854305,2.5,253.61,253.57,20.0]
[1732225855211,2.5,253.61,253.55,22.9579]
[1732225855415,2.5,253.61,253.55,4.141]
[1732225855725,2.5,253.57,253.55,4.141]
[1732225856425,2.30515758,253.56,253.55,4.141]
[1732225857115,2.5,253.57,253.55,4.141]
[1732225857306,2.30515758,253.56,253.55,4.141]
[1732225857505,2.30515758,253.56,253.55,2.9579]
[1732225857705,2.5,253.57,253.55,2.9579]
[1732225857922,2.30515758,253.56,253.55,2.9579]
[1732225858502,2.30515758,253.58,253.51,21.1833]
[1732225858724,2.30515758,253.58,253.51,24.1417]
[1732225858907,2.30515758,253.58,253.53,20.0]
[1732225859104,23.776884,253.55,253.53,20.0]
[1732225859638,2.5,253.54,253.52,21.1832]
[1732225860229,2.5,253.52,253.45,12.12706114]
[1732225860428,14.62706114,253.49,253.46,2.959]
[1732225861529,23.776884,253.5,253.44,20.0]
[1732225861737,2.5,253.48,253.44,20.0]
[1732225861909,38.40394514,253.47,253.42,4.1433]
[1732225862407,35.90394514,253.47,253.42,4.1433]
[1732225862605,14.43221872,253.49,253.42,4.1433]
[1732225863034,23.776884,253.5,253.42,10.0623]
[1732225864213,23.776884,253.5,253.44,4.1429]
[1732225866231,2.30515758,253.53,253.46,20.0]
[1732225866935,2.5,253.52,253.46,20.0]
[1732225867141,2.5,253.5,253.46,20.0]
[1732225867315,14.43221872,253.53,253.46,20.0]
[1732225868111,14.43221872,253.53,253.47,4.1424]
[1732225869840,2.5,253.56,253.48,20.0]
[1732225870047,2.5,253.53,253.5,20.0]
[1732225870214,2.5,253.55,253.5,20.0]
[1732225870413,2.5,253.53,253.5,20.0]
[1732225870713,2.5,253.53,253.47,24.1424]
[1732225871612,2.5,253.49,253.47,24.1424]
[1732225872013,23.776884,253.48,253.47,2.9589]
[1732225872244,35.90394514,253.48,253.47,2.9589]
[1732225873031,35.90394514,253.48,253.38,6.4701]
[1732225873231,35.90394514,253.48,253.39,4.1437]
[1732225873431,2.5,253.46,253.39,42.19046114]
[1732225873638,38.40394514,253.48,253.39,42.19046114]
[1732225874144,2.5,253.48,253.41,12.12706114]
[1732225874444,2.5,253.46,253.42,20.0]
[1732225875223,2.5,253.46,253.43,2.9593]
[1732225875739,2.30515758,253.47,253.43,2.9593]
[1732225875740,2.5,253.45,253.43,2.9593]
[1732225875916,23.776884,253.44,253.43,2.9593]
[1732225876114,26.08204158,253.44,253.43,2.9593]
[1732225877018,2.5,253.41,253.4,1.1838]
[1732225877218,26.08204158,253.44,253.38,2.9598]
[1732225877219,4.80515758,253.39,253.38,4.1437]
[1732225878331,4.80515758,253.37,253.35,5.9206]
[1732225879015,2.30515758,253.37,253.35,5.9206]
[1732225879630,4.80515758,253.39,253.35,5.9206]
[1732225880023,2.5,253.39,253.36,20.0]
[1732225883450,2.5,253.39,253.37,4.144]
[1732225883645,4.80515758,253.41,253.37,4.144]
[1732225884027,4.80515758,253.39,253.37,4.144]
[1732225884222,23.776884,253.38,253.37,4.144]
[1732225885437,2.30515758,253.36,253.35,5.9206]
[1732225885645,2.5,253.37,253.35,5.9206]
[1732225887050,2.5,253.35,253.33,4.1447]
[1732225887359,2.5,253.35,253.33,24.1447]
[1732225889345,2.30515758,253.38,253.33,24.1447]
[1732225889346,2.5,253.37,253.33,24.1447]
[1732225889649,2.30515758,253.36,253.33,24.1447]
[1732225889853,2.5,253.37,253.33,24.1447]
[1732225891738,2.5,253.39,253.34,12.12706114]
[1732225892052,2.30515758,253.4,253.37,20.0]
[1732225892658,2.5,253.43,253.39,20.0]
[1732225893457,2.5,253.43,253.4,12.12706114]
[1732225893639,2.5,253.43,253.41,4.1434]
[1732225894562,2.30515758,253.42,253.41,4.1434]
[1732225896239,4.80515758,253.45,253.41,4.1434]
[1732225896955,4.80515758,253.47,253.42,12.12706114]
[1732225897938,4.80515758,253.47,253.43,4.143]
[1732225898343,18.39995758,253.5,253.44,12.12706114]
[1732225898540,2.30515758,253.5,253.45,20.0]
[1732225898742,2.5,253.51,253.45,20.0]
[1732225898948,2.30515758,253.5,253.45,20.0]
[1732225899355,2.5,253.51,253.46,12.12706114]
[1732225899547,2.5,253.51,253.47,4.1424]
[1732225900142,2.30515758,253.5,253.47,4.1424]
[1732225901261,4.80515758,253.5,253.47,4.1424]
[1732225902160,2.5,253.44,253.42,2.9594]
[1732225902350,2.5,253.44,253.42,22.9594]
[1732225902739,2.30515758,253.45,253.42,24.1432]
[1732225904262,2.30515758,253.45,253.43,12.12706114]
[1732225904467,2.30515758,253.46,253.43,12.12706114]
[1732225905663,4.80515758,253.46,253.44,4.1429]
[1732225906236,2.5,253.46,253.44,4.1429]
[1732225907065,4.80515758,253.46,253.44,4.1429]
[1732225908061,2.5,253.48,253.44,16.26996114]
[1732225909168,2.5,253.5,253.46,12.12706114]
[1732225909343,2.30515758,253.51,253.47,20.0]
[1732225909545,2.30515758,253.53,253.49,20.0]
[1732225909768,2.30515758,253.54,253.49,20.0]
[1732225910068,2.30515758,253.54,253.51,20.0]
[1732225910241,2.30515758,253.54,253.52,12.12706114]
[1732225910444,2.5,253.58,253.53,20.0]
[1732225910639,2.30515758,253.59,253.54,12.12706114]
[1732225911063,2.30515758,253.59,253.55,20.0]
[1732225911265,2.30515758,253.59,253.56,4.1409]
[1732225911758,2.5,253.6,253.56,4.1409]
[1732225912450,2.30515758,253.59,253.56,4.1409]
[1732225912645,2.5,253.6,253.57,20.0]
[1732225913247,4.80515758,253.63,253.58,12.12706114]
[1732225913449,2.30515758,253.61,253.58,12.12706114]
[1732225913664,4.80515758,253.61,253.58,12.12706114]
[1732225913967,2.30515758,253.61,253.58,12.12706114]
[1732225914350,4.80515758,253.61,253.58,12.12706114]
[1732225914542,2.5,253.61,253.58,4.1406]
[1732225915353,4.80515758,253.63,253.58,4.1406]
[1732225915769,4.80515758,253.63,253.58,16.26766114]
[1732225916375,4.80515758,253.67,253.62,12.12706114]
[1732225916548,2.5,253.67,253.63,20.0]
[1732225916877,2.5,253.67,253.64,4.1396]
[1732225917074,2.5,253.65,253.64,4.1396]
[1732225917869,2.30515758,253.66,253.64,4.1396]
[1732225918275,2.5,253.65,253.64,4.1396]
[1732225918774,14.43221872,253.66,253.64,2.9569]
[1732225918970,2.5,253.65,253.64,2.9569]
[1732225919949,2.5,253.65,253.6,1.1829]
[1732225919950,2.30515758,253.63,253.6,4.1403]
[1732225920159,14.43221872,253.61,253.6,2.9574]
[1732225920365,38.20910272,253.61,253.6,2.9574]
[1732225920869,4.80515758,253.57,253.52,5.9166]
[1732225921072,4.80515758,253.42,253.34,5.9208]
[1732225921272,14.62706114,253.4,253.35,2.9603]
[1732225921573,14.62706114,253.38,253.35,2.9603]
[1732225922466,12.12706114,253.38,253.35,2.9603]
[1732225922861,16.93221872,253.4,253.35,2.9603]
[1732225923874,2.30515758,253.4,253.35,2.9603]
[1732225924769,16.93221872,253.42,253.35,2.9603]
[1732225925976,2.5,253.4,253.35,2.9603]
[1732225926754,14.62706114,253.38,253.35,2.9603]
[1732225926988,16.93221872,253.36,253.35,2.9603]
[1732225927156,2.5,253.31,253.3,2.9609]
[1732225927469,40.70910272,253.31,253.3,2.9609]
[1732225928262,2.30515758,253.29,253.2,4.1468]
[1732225928464,2.30515758,253.26,253.2,4.1468]
[1732225929171,2.5,253.27,253.2,4.1468]
[1732225929365,2.30515758,253.26,253.2,4.1468]
[1732225929565,2.30515758,253.26,253.2,24.1468]
[1732225930059,2.5,253.27,253.2,30.0709]
[1732225930270,2.30515758,253.26,253.2,30.0709]
[1732225930668,2.30515758,253.28,253.22,20.0]
[1732225931160,14.62706114,253.26,253.21,20.0]
[1732225931354,2.30515758,253.29,253.21,20.0]
[1732225931355,16.93221872,253.24,253.21,20.0]
[1732225931584,2.30515758,253.26,253.21,20.0]
[1732225931958,4.80515758,253.28,253.22,4.1465]
[1732225932155,4.80515758,253.3,253.22,10.0702]
[1732225932359,2.30515758,253.3,253.26,20.0]
[1732225933066,2.5,253.33,253.26,20.0]
[1732225933281,2.30515758,253.31,253.26,20.0]
[1732225933665,2.30515758,253.31,253.27,12.12706114]
[1732225933908,2.5,253.37,253.31,20.0]
[1732225934089,2.30515758,253.38,253.36,12.12706114]
[1732225934676,2.30515758,253.4,253.36,12.12706114]
[1732225934872,2.5,253.41,253.38,12.12706114]
[1732225935591,2.5,253.48,253.41,20.0]
[1732225935768,2.5,253.48,253.46,12.12706114]
[1732225936085,2.5,253.48,253.47,1.1835]
[1732225936270,2.30515758,253.5,253.47,24.1424]
[1732225936472,2.5,253.51,253.49,12.12706114]
[1732225936671,2.30515758,253.5,253.48,19.38602728]
[1732225936983,2.5,253.51,253.48,19.38602728]
[1732225937294,2.5,253.49,253.48,39.38602728]
[1732225937989,2.5,253.49,253.47,2.9589]
[1732225938176,2.5,253.49,253.45,1.1836]
[1732225938177,4.80515758,253.46,253.45,1.1836]
[1732225938988,2.5,253.42,253.41,22.34552728]
[1732225939163,2.30515758,253.42,253.41,4.1433]
[1732225940173,2.30515758,253.44,253.41,23.52932728]
[1732225940498,2.5,253.43,253.41,23.52932728]
[1732225941168,2.30515758,253.42,253.41,4.1433]
[1732225941591,2.5,253.43,253.41,4.1433]
[1732225941971,2.30515758,253.42,253.41,4.1433]
[1732225942876,2.30515758,253.42,253.41,2.9595]
[1732225945178,2.30515758,253.44,253.41,2.9595]
[1732225945388,2.30515758,253.42,253.41,2.9595]
[1732225946091,2.30515758,253.44,253.41,2.9595]
[1732225946294,2.30515758,253.44,253.41,4.1433]
[1732225946471,2.30515758,253.42,253.41,4.1433]
[1732225947167,2.30515758,253.44,253.41,4.1433]
[1732225948493,2.30515758,253.44,253.42,19.38602728]
[1732225949275,2.5,253.43,253.41,22.9595]
[1732225949473,2.30515758,253.42,253.41,22.9595]
[1732225950471,2.30515758,253.42,253.41,24.1433]
[1732225951375,2.30515758,253.42,253.41,4.1433]
[1732225951984,2.5,253.4,253.32,10.0661]
[1732225952194,2.5,253.4,253.36,19.38602728]
[1732225952669,2.5,253.4,253.37,20.0]
[1732225952986,2.5,253.38,253.37,20.0]
[1732225953388,2.5,253.4,253.37,20.0]
[1732225953593,2.5,253.4,253.39,20.0]
[1732225954198,2.5,253.4,253.39,21.1839]
[1732225954398,4.80515758,253.42,253.39,21.1839]
[1732225954588,4.80515758,253.42,253.41,39.38602728]
[1732225956195,4.80515758,253.42,253.41,40.56982728]
[1732225956775,4.80515758,253.42,253.41,13.30662322]
[1732225957182,4.80515758,253.42,253.41,33.30662322]
[1732225959001,2.30515758,253.44,253.42,20.0]
[1732225959299,2.30515758,253.44,253.43,12.12282322]
[1732225959488,2.30515758,253.44,253.43,13.30652322]
[1732225959983,2.5,253.42,253.41,24.1434]
[1732225960172,4.80515758,253.42,253.41,24.1434]
[1732225960373,4.80515758,253.42,253.41,4.1434]
[1732225961080,28.58204158,253.42,253.41,4.1434]
[1732225962199,2.30515758,253.42,253.41,16.26622322]
[1732225962711,2.5,253.18,253.16,15.765197]
[1732225962912,2.5,253.2,253.17,12.12282322]
[1732225963076,2.5,253.2,253.19,12.12282322]
[1732225963995,2.30515758,253.21,253.19,32.12282322]
[1732225964194,4.80515758,253.22,253.2,20.0]
[1732225965006,4.80515758,253.22,253.21,12.12282322]
[1732225966507,4.80515758,253.22,253.19,12.12282322]
[1732225966681,4.80515758,253.22,253.2,20.0]
[1732225969309,2.5,253.19,253.16,20.0]
[1732225969800,2.5,253.17,253.16,20.0]
[1732225970104,2.5,253.17,253.14,20.0]
[1732225971008,2.5,253.17,253.15,12.12282322]
[1732225971212,2.5,253.17,253.16,20.0]
[1732225973297,2.5,253.17,253.09,22.38061706]
[1732225973298,26.276884,253.17,253.13,12.12282322]
[1732225973507,2.30515758,253.13,253.11,12.12282322]
[1732225973693,2.5,253.12,253.11,12.12282322]
[1732225974790,2.5,253.12,253.11,32.12282322]
[1732225975409,2.5,253.12,253.11,20.0]
[1732225975610,2.5,253.1,253.09,20.0]
[1732225978025,2.5,253.1,253.09,12.12282322]
[1732225978312,2.5,253.1,253.09,32.12282322]
[1732225978807,2.30515758,253.13,253.09,32.12282322]
[1732225979011,12.12282322,253.24,253.02,6.13451706]
[1732225979012,2.5,253.12,253.11,12.12282322]
[1732225979214,2.5,253.12,253.11,32.12282322]
[1732225979520,2.5,253.12,253.11,20.0]
[1732225979812,2.5,253.12,253.1,20.0]
[1732225980223,2.30515758,253.11,253.1,20.0]
[1732225980922,4.80515758,253.15,253.1,20.0]
[1732225981095,2.30515758,253.13,253.12,12.12282322]
[1732225981287,4.80515758,253.15,253.12,12.12282322]
[1732225981488,4.80515758,253.15,253.13,20.0]
[1732225985194,4.80515758,253.12,253.11,20.0]
[1732225985514,2.5,253.12,253.11,20.0]
[1732225985818,2.30515758,253.12,253.11,20.0]
[1732225986120,2.5,253.11,253.0,20.19484242]
[1732225986451,2.30515758,253.12,253.11,20.0]
[1732225987715,2.5,253.13,253.11,20.0]
[1732225988312,2.30515758,253.14,253.11,20.0]
[1732225988815,2.30515758,253.12,253.11,20.0]
[1732225989008,2.30515758,253.14,253.11,20.0]
[1732225989211,2.30515758,253.12,253.11,20.0]
[1732225990223,2.30515758,253.14,253.11,20.0]
[1732225990532,2.30515758,253.14,253.13,20.0]
[1732225990826,2.5,253.15,253.13,20.0]
[1732225991029,2.5,253.15,253.14,12.12282322]
[1732225991322,20.0355,253.25,253.14,12.12282322]
[1732225991323,2.30515758,253.18,253.15,20.0]
[1732225991615,2.5,253.17,253.15,20.0]
[1732225991824,2.5,253.17,253.12,20.0]
[1732225992606,2.5,253.17,253.16,32.12282322]
[1732225994328,2.5,253.17,253.16,20.0]
[1732225994538,4.80515758,253.15,253.14,20.0]
[1732225995120,28.58204158,253.15,253.13,20.0]
[1732225995828,4.80515758,253.15,253.13,20.0]
[1732225996536,4.80515758,253.15,253.14,12.12282322]
[1732225996824,4.80515758,253.15,253.14,32.12282322]
[1732225997032,28.58204158,253.15,253.14,32.12282322]
[1732225997229,2.30515758,253.13,253.12,32.12282322]
[1732225997531,28.58204158,253.15,253.12,32.12282322]
[1732225997742,28.58204158,253.15,253.13,20.0]
[1732225998512,4.80515758,253.15,253.13,20.0]
[1732225998719,4.80515758,253.15,253.14,32.12282322]
[1732225999449,4.80515758,253.17,253.15,20.0]
[1732225999620,4.80515758,253.17,253.16,12.12282322]
[1732225999821,4.80515758,253.17,253.16,32.12282322]
[1732226000247,4.80515758,253.19,253.17,20.0]
[1732226000420,2.5,253.19,253.18,12.12282322]
[1732226000620,2.5,253.19,253.18,32.12282322]
[1732226000943,4.80515758,253.21,253.19,20.0]
[1732226001322,2.30515758,253.18,253.17,20.0]
[1732226002014,4.80515758,253.18,253.17,20.0]
[1732226005453,4.80515758,253.18,253.07,3.935]
[1732226005454,2.5,253.16,253.15,20.0]
[1732226005755,4.80515758,253.13,253.12,12.12282322]
[1732226006053,2.5,253.11,253.1,12.12282322]
[1732226007147,2.5,253.11,253.1,32.12282322]
[1732226009453,2.30515758,253.13,253.11,20.0]
[1732226009660,2.5,253.16,253.13,20.0]
[1732226009840,2.5,253.16,253.15,32.12282322]